Cogmind - Beta 13 @@@ ROGUE MODE // 2024.06.30 @ 20:23:53 Player: Val Result: Destroyed by Y-54 Guardian with Gatling Laser Performance ------------- Evolutions (3) 1500 Regions Visited (6) 1200 Robots Destroyed (44) 220 Value Destroyed (1357) 1357 Prototype IDs (0) 0 Alien Tech Used (0) 0 Bonus (0) 0 TOTAL SCORE: 4277 Bonus ------- None Cogmind --------- Core Integrity 0/700 Matter 292/300 Energy 82/100 System Corruption 1% Temperature Cool (12) Movement Core (1350) Ox26 Location -7/Lower Caves Parts ------- > --- POWER (1) -------- (None) > --- PROPULSION (3) --- (None) > --- UTILITY (6) ------ Huge Storage Unit Core Analyzer > --- WEAPON (3) ------- (None) > --- INVENTORY (25) --- Light Treads Advanced Treads Advanced Treads Aluminum Leg Compact Wheel Compact Wheel Coolant Injector Core Analyzer Core Analyzer Core Analyzer Improved Propulsion Shielding Peak State ------------ > --- POWER ------------ Light Ion Engine > --- PROPULSION ------- Improved Carbon-fiber Leg Improved Carbon-fiber Leg Improved Carbon-fiber Leg > --- UTILITY ---------- Coolant Injector Coolant Injector Huge Storage Unit Targeting Computer Core Analyzer Core Analyzer > --- WEAPON ----------- Plasma Cannon Plasma Cannon Plasma Cannon > --- INVENTORY -------- Light Treads Advanced Treads Advanced Treads Aluminum Leg Compact Wheel Compact Wheel Coolant Injector Core Analyzer Core Analyzer Core Analyzer Improved Propulsion Shielding Pulse Rifle Pulse Rifle Gauss Rifle Gauss Rifle [Rating: 47] Favorites ----------- Power Ion Engine Engine Ion Engine Propulsion Light Treads Treads Light Treads Leg Aluminum Leg Utility Targeting Computer Device Coolant Injector Storage Huge Storage Unit Processor Targeting Computer Protection Improved Propulsion Shielding Weapon Plasma Cannon Energy Gun Small Laser Energy Cannon Plasma Cannon Ballistic Gun Assault Rifle Build | -11 -10 -9 -9 -8 -7 -7 ------- Run | Yrd Mat Mat Min Mat Fac Low Slots Evolved 6 | . . 2 . 2 2 . Power . | . . . . . . . Propulsion 1 | . . . . 1 . . Utility 4 | . . 1 . 1 2 . Weapon 1 | . . 1 . . . . Parts Attached 54 | 6 9 3 8 10 13 5 Power 5 | 1 2 . 1 . 1 . Engine 5 | 1 2 . 1 . 1 . Core . | . . . . . . . Reactor . | . . . . . . . Propulsion 15 | 2 2 . 2 2 7 . Treads 7 | 2 2 . . . 3 . Leg 8 | . . . 2 2 4 . Wheel . | . . . . . . . Hover . | . . . . . . . Flight . | . . . . . . . Utility 16 | 1 3 1 2 4 4 1 Device 6 | . 1 . 2 2 1 . Storage 4 | 1 . 1 . . 2 . Processor 5 | . 2 . . 1 1 1 Hackware . | . . . . . . . Protection 1 | . . . . 1 . . Artifact . | . . . . . . . Weapon 18 | 2 2 2 3 4 1 4 Energy Gun 5 | 1 . . 2 . . 2 Energy Cannon 7 | . 2 . . 4 1 . Ballistic Gun 6 | 1 . 2 1 . . 2 Ballistic Cannon . | . . . . . . . Launcher . | . . . . . . . Special Weapon . | . . . . . . . Impact Weapon . | . . . . . . . Slashing Weapon . | . . . . . . . Piercing Weapon . | . . . . . . . Special Melee Weapon . | . . . . . . . Unidentified Prototypes . | . . . . . . . Parts Lost 22 | . . . 4 1 5 12 Power 3 | . . . 1 . 1 1 Propulsion 7 | . . . 1 . 3 3 Utility 6 | . . . 1 1 . 4 Weapon 6 | . . . 1 . 1 4 Highest Loss Streak 10 | . . . 4 1 5 10 To Critical Strikes . | . . . . . . . Average Slot Usage (%) 96 | . 96 96 97 96 97 93 Engine 8 | . 13 11 9 9 5 4 Treads 9 | . 27 22 10 . 2 . Leg 14 | . . . 11 24 20 21 Device 10 | . 11 . 5 8 14 14 Storage 4 | . 3 8 4 . 7 7 Processor 20 | . 12 22 22 25 21 22 Energy Gun 1 | . . . 6 . . . Energy Cannon 17 | . 12 11 4 25 22 21 Ballistic Gun 8 | . 14 22 22 1 . . Naked Turns . | . . . . . . . Heaviest Build 108 | 11 15 14 14 29 108 106 Greatest Support 64 | 40 40 40 40 32 64 54 Greatest Overweight (x) 5 | . . . . 1 2 5 Average Overweight (x) . | . . . . . 1 1 Largest Inventory Capacity 25 | 8 8 5 5 5 25 25 Average Capacity 12 | 7 5 5 5 5 21 25 Most Carried 16 | 7 6 5 5 5 13 16 Average Carried 7 | 4 4 4 4 4 10 14 Final Capacity 25 | 8 5 5 5 5 25 25 Final Carried 12 | 4 4 5 5 4 12 11 Class Distribution -------------------- 60% | Gunner 21% | Mutant 17% | Scavenger-Gunner Dominant Class ---------------- Mutant | -10/Materials Gunner | -9/Materials Scavenger-Gunner | -9/Mines Scavenger-Gunner | -8/Materials Gunner | -7/Factory Gunner | -7/Lower Caves Resources | -11 -10 -9 -9 -8 -7 -7 ----------- Run | Yrd Mat Mat Min Mat Fac Low Matter Collected 1002 | 208 188 45 250 158 88 65 Remotely . | . . . . . . . Salvage Created 1586 | . 218 69 191 548 289 271 Parts 98 | . 21 6 16 24 18 13 Haulers Intercepted . | . . . . . . . Recyclers Shooed . | . . . . . . . Parts Field Recycled . | . . . . . . . Retrieved Matter . | . . . . . . . Parts Self-Destructed 14 | . . . . . . 14 Prevented . | . . . . . . . Kills | -11 -10 -9 -9 -8 -7 -7 ------- Run | Yrd Mat Mat Min Mat Fac Low Combat Hostiles Destroyed 37 | . 8 1 7 10 5 6 Guns 13 | . 5 1 6 . . 1 Cannons 24 | . 3 . 1 10 5 5 Classes Destroyed 10 | . 4 1 1 2 2 . Worker 2 | . . . . 1 1 . Builder 2 | . 1 . . . 1 . Watcher 3 | . 1 1 . 1 . . Swarmer 12 | . 6 . 4 . . 2 Grunt 14 | . 2 . 2 5 2 3 Brawler 2 | . . . . 2 . . Duelist 2 | . . . 1 . . 1 Sentry 5 | . . 1 . 3 1 . Hunter 1 | . . . . . 1 . Programmer 1 | . . . . . 1 . Best Kill Streak 4 | . 4 1 4 4 4 3 Combat Bots Only 4 | . 3 1 4 4 3 3 Max Kills in Single Turn 2 | . 1 1 2 2 2 1 Gunslinging 1 | . . . 1 . . . Exploded . | . . . . . . . Melee . | . . . . . . . Uniques/NPCs Destroyed . | . . . . . . . Combat | -11 -10 -9 -9 -8 -7 -7 -------- Run | Yrd Mat Mat Min Mat Fac Low Hostile Shots Fired 310 | . 23 2 42 23 46 174 Missed 101 | . 6 . 6 8 20 61 Damage Taken 3383 | . 138 32 521 230 602 1860 Core 799 | . 32 15 32 14 80 626 Absorbed by Shields . | . . . . . . . Redirected to Shielding 9 | . . . . 9 . . Regen/Repaired (Parts) 60 | . . . . 60 . . Core Remaining (%) 93 | 100 87 . 88 97 . . Volleys Fired 98 | . 25 2 16 21 12 22 Largest 3 | . 2 3 3 3 3 3 Hottest 240 | . 80 103 103 240 240 240 Shots Fired 242 | . 50 6 47 63 34 42 Gun 72 | . 27 4 36 . . 5 Cannon 170 | . 23 2 11 63 34 37 Launcher . | . . . . . . . Special . | . . . . . . . Kinetic 62 | . 25 4 31 . . 2 Thermal 180 | . 25 2 16 63 34 40 Explosive . | . . . . . . . Electromagnetic . | . . . . . . . Robot Hit Streak 22 | . 3 5 21 22 7 9 Robot Miss Streak 4 | . 4 . 3 3 3 2 Penetration Max . | . . . . . . . Secondary Targets 2 | . . . 1 . . 1 Max Gunslinging Chain 1 | . . . 1 . . 1 Shots Hit Robots 147 | . 19 4 33 46 18 27 Core Hits 67 | . 12 3 11 16 13 12 Critical Kills . | . . . . . . . Critical Parts Destroyed . | . . . . . . . Critical Strikes . | . . . . . . . Melee Attacks . | . . . . . . . Impact . | . . . . . . . Slashing . | . . . . . . . Piercing . | . . . . . . . Sneak Attacks . | . . . . . . . Combat Hostiles . | . . . . . . . Follow-up Attacks . | . . . . . . . Damage Inflicted 3295 | . 328 62 496 1204 529 676 Guns 624 | . 136 27 374 . . 87 Cannons 2664 | . 192 35 122 1204 522 589 Explosions . | . . . . . . . Melee . | . . . . . . . Ramming 7 | . . . . . 7 . Kinetic 506 | . 126 27 317 . . 36 Thermal 2782 | . 202 35 179 1204 522 640 Explosive . | . . . . . . . Electromagnetic . | . . . . . . . Impact . | . . . . . . . Slashing . | . . . . . . . Piercing . | . . . . . . . Highest Corruption 1 | . . . . . 1 1 Average Corruption 1 | . . . . . 1 1 Corruption Purged . | . . . . . . . Corruption Blocked . | . . . . . . . Effects 2 | . . . . . . 2 Data Loss (major) 1 | . . . . . . 1 Alerts 1 | . . . . . . 1 Overload Shots . | . . . . . . . Overflow Damage 62 | . . . . 30 6 26 Projectiles 62 | . . . . 30 6 26 Explosions . | . . . . . . . Melee . | . . . . . . . Knockbacks . | . . . . . . . Impact . | . . . . . . . Kinetic . | . . . . . . . Secondary . | . . . . . . . Self-Inflicted Damage . | . . . . . . . Shots . | . . . . . . . Rammed . | . . . . . . . Targets Rammed 2 | . . . . . 1 1 Kicked 2 | . . . . . 1 1 Crushed . | . . . . . . . Highest Temperature 199 | . 90 39 142 199 199 199 Average Temperature 81 | . 36 22 47 122 96 90 Received Heat Transfer 777 | . . 9 78 126 54 510 Siege Activations . | . . . . . . . Robots Corrupted . | . . . . . . . Combat Hostiles . | . . . . . . . Parts Fried . | . . . . . . . Impact Corruptions . | . . . . . . . Robots Melted . | . . . . . . . Combat Hostiles . | . . . . . . . Parts Melted 13 | . . . . 9 4 . Heat Transferred 5501 | . 432 74 384 2350 1000 1261 Parts Sabotaged . | . . . . . . . Parts Stolen . | . . . . . . . Parts Stripped . | . . . . . . . Power Chain Reactions . | . . . . . . . Alert | -11 -10 -9 -9 -8 -7 -7 ------- Run | Yrd Mat Mat Min Mat Fac Low Peak Influence 390 | . 211 125 168 390 267 . Initial 86 | . . 56 48 65 86 . Average 136 | . 84 102 153 213 148 . Maximum Alert Level 1 | . 1 . . 1 1 . Low Security (%) 81 | 100 86 100 100 52 75 . Level 1 18 | . 13 . . 47 24 . Level 2 . | . . . . . . . Level 3 . | . . . . . . . Level 4 . | . . . . . . . Level 5 . | . . . . . . . High Security . | . . . . . . . Max Security . | . . . . . . . Squads Dispatched 6 | . 3 1 . . 2 . Investigation 1 | . . . . . 1 . Extermination 1 | . . . . . 1 . Reinforcement 4 | . 3 1 . . . . Assault . | . . . . . . . Garrison . | . . . . . . . Intercept . | . . . . . . . Searches Triggered . | . . . . . . . Construction Impeded . | . . . . . . . Haulers Reinforced . | . . . . . . . Active Scanning Responses . | . . . . . . . Cargo Convoy Interrupts . | . . . . . . . Stealth | -11 -10 -9 -9 -8 -7 -7 --------- Run | Yrd Mat Mat Min Mat Fac Low Distress Signals 1 | . . . . 1 . . Communications Jammed . | . . . . . . . Distress Signals . | . . . . . . . Times Spotted 56 | . 12 2 6 13 9 14 Peak Tracking Total 7 | . 3 1 3 4 6 7 Tactical Retreats 2 | . . . . . 1 1 Traps | -11 -10 -9 -9 -8 -7 -7 ------- Run | Yrd Mat Mat Min Mat Fac Low Traps Triggered 3 | . 2 . . . 1 . Indirectly . | . . . . . . . Trap Hack Attempts . | . . . . . . . Triggered . | . . . . . . . Disarmed . | . . . . . . . Reprogrammed . | . . . . . . . Reused . | . . . . . . . Traps Extracted . | . . . . . . . Installed . | . . . . . . . Triggered . | . . . . . . . Machines | -11 -10 -9 -9 -8 -7 -7 ---------- Run | Yrd Mat Mat Min Mat Fac Low Machines Disabled 1 | . . . . . 1 . Max in Single Turn 1 | . . . . . 1 . Machines Repaired . | . . . . . . . Machines Dismantled . | . . . . . . . Machines Sabotaged . | . . . . . . . Overloaded Fab Kills . | . . . . . . . Hacking | -11 -10 -9 -9 -8 -7 -7 --------- Run | Yrd Mat Mat Min Mat Fac Low Machines Accessed 6 | . 2 2 . 1 . 1 Terminals 3 | . 2 1 . . . . Fabricators . | . . . . . . . Repair Stations 2 | . . 1 . 1 . . Recycling Units . | . . . . . . . Scanalyzers . | . . . . . . . Garrison Access . | . . . . . . . Total Hacks 8 | . 3 2 . 2 . 1 Successful 6 | . 2 1 . 2 . 1 Failed 2 | . 1 1 . . . . Catastrophic . | . . . . . . . Database Lockouts . | . . . . . . . Manual . | . . . . . . . Terminals 4 | . 3 1 . . . . Fabricators . | . . . . . . . Repair Stations 3 | . . 1 . 2 . . Recycling Units . | . . . . . . . Scanalyzers . | . . . . . . . Garrison Access . | . . . . . . . Terminal Hacks 4 | . 2 1 . . . 1 Record 3 | . 2 1 . . . . Open Door 1 | . . . . . . 1 Fabricator Hacks . | . . . . . . . Repair Station Hacks 2 | . . . . 2 . . Scan Component 1 | . . . . 1 . . Repair 1 | . . . . 1 . . Recycling Unit Hacks . | . . . . . . . Scanalyzer . | . . . . . . . Garrison Access Hacks . | . . . . . . . Unauthorized Hacks . | . . . . . . . Terminals . | . . . . . . . Fabricators . | . . . . . . . Repair Stations . | . . . . . . . Recycling Units . | . . . . . . . Scanalyzers . | . . . . . . . Garrison Access . | . . . . . . . Data Cores Recovered . | . . . . . . . Used . | . . . . . . . Hacking Detections 3 | . 1 1 . 1 . . Full Trace Events . | . . . . . . . Feedback Events . | . . . . . . . Feedback Blocked . | . . . . . . . Robot Schematics Acquired . | . . . . . . . Robots Built . | . . . . . . . Authchips . | . . . . . . . Time . | . . . . . . . Total Robot Build Rating . | . . . . . . . Part Schematics Acquired . | . . . . . . . Parts Built . | . . . . . . . Authchips . | . . . . . . . Time . | . . . . . . . Total Part Build Rating . | . . . . . . . Parts Repaired 1 | . . . . 1 . . Time 44 | . . . . 44 . . Parts Recycled . | . . . . . . . Recycled Matter . | . . . . . . . Retrieved Matter . | . . . . . . . Retrieved Components . | . . . . . . . Parts Scanalyzed . | . . . . . . . Part Schematics Acquired . | . . . . . . . Parts Damaged . | . . . . . . . Bothacking | -11 -10 -9 -9 -8 -7 -7 ------------ Run | Yrd Mat Mat Min Mat Fac Low Used RIF Installer . | . . . . . . . Robots Hacked . | . . . . . . . Non-combat . | . . . . . . . Combat . | . . . . . . . Robot Hacks Applied . | . . . . . . . Relay Couplers Released . | . . . . . . . Fabnet Peak Effective % . | . . . . . . . Robots Rewired . | . . . . . . . Allies Hacked . | . . . . . . . Hacks Repelled . | . . . . . . . Allies | -11 -10 -9 -9 -8 -7 -7 -------- Run | Yrd Mat Mat Min Mat Fac Low Total Allies . | . . . . . . . Largest Group . | . . . . . . . Highest-Rated Group . | . . . . . . . Highest-Rated Ally . | . . . . . . . Total Orders . | . . . . . . . Ally Attacks . | . . . . . . . Total Damage . | . . . . . . . Kills . | . . . . . . . Allies Corrupted . | . . . . . . . Allies Melted . | . . . . . . . Intel | -11 -10 -9 -9 -8 -7 -7 ------- Run | Yrd Mat Mat Min Mat Fac Low Robot Analysis Total . | . . . . . . . Derelict Logs Recovered 2 | . . . 1 . . 1 Drone Launches . | . . . . . . . Drone Recoveries . | . . . . . . . Exploration | -11 -10 -9 -9 -8 -7 -7 ------------- Run | Yrd Mat Mat Min Mat Fac Low Turns Passed 2649 | 78 484 273 359 444 473 538 Spaces Moved 1342 | 49 242 161 220 252 182 236 Core 14 | 14 . . . . . . Treads 524 | 35 242 161 71 . 15 . Legs 804 | . . . 149 252 167 236 Wheels . | . . . . . . . Hover . | . . . . . . . Flight . | . . . . . . . Fastest Speed 50 | 50 160 160 120 110 186 190 Average Speed 161 | 128 160 160 132 125 220 191 Slowest Speed 470 | 160 160 160 160 190 305 470 Overloaded Moves . | . . . . . . . Propulsion Burnouts . | . . . . . . . Robots Hopped . | . . . . . . . Cave-ins Triggered . | . . . . . . . Exploration Rate (%) 28 | 5 42 16 48 22 9 57 Regions Visited 6 Branch Regions 2 Pre-discovered Areas 1 | . . . . . . 1 Known Exits Taken . | . . . . . . . Unknown Exits Taken 6 | 1 1 1 1 1 1 . Scrap Searched 4 | . . . 1 . . 3 Spaces Dug . | . . . . . . . Terrain Destroyed 14 | . . . . 13 . 1 Melee . | . . . . . . . Projectile 14 | . . . . 13 . 1 AOE . | . . . . . . . Terrain Rammed . | . . . . . . . Walls Destroyed . | . . . . . . . Machines Disabled . | . . . . . . . Actions | -11 -10 -9 -9 -8 -7 -7 --------- Run | Yrd Mat Mat Min Mat Fac Low Total 1628 | 64 289 174 252 336 226 287 Wait 51 | . . . . 34 . 17 Move 1336 | 48 241 160 219 251 181 236 Hop . | . . . . . . . Pick Up 61 | 10 8 6 6 10 16 5 Fast Attach 8 | . 4 . 1 3 . . Attach 40 | 6 4 3 6 7 9 5 Detach 2 | . . . . . 2 . Swap 6 | . 1 . 1 . 4 . Drop 24 | . 6 3 3 10 1 1 Fire 98 | . 25 2 16 21 12 22 Melee . | . . . . . . . Ram . | . . . . . . . Kick 2 | . . . . . 1 1 Crush . | . . . . . . . Escape Stasis . | . . . . . . . Rewire . | . . . . . . . Trap . | . . . . . . . Miscellaneous . | . . . . . . . Route ------- -11/Scrapyard -10/Materials -9/Materials (discovered 2 exits: [*Min] / [*Sto]) -9/Mines -8/Materials -7/Factory -7/Lower Caves History --------- Turn | Location | Event 10 | -11/Scrapyard | Discovered new exit (range 15) 79 | -11/Scrapyard | Entered Materials 306 | -10/Materials | Build established: Mutant 517 | -10/Materials | Discovered new exit (range 7) 563 | -10/Materials | Entered another Materials area 563 | -9/Materials | Evolved 2 slots: Utility x1, Weapon x1 592 | -9/Materials | Discovered new exit (range 5) 660 | -9/Materials | Discovered new exit (range 12) 836 | -9/Materials | Entered Mines 850 | -9/Mines | Build established: Gunner 867 | -9/Mines | Learned Materials trap positions 1022 | -9/Mines | Lost 4 parts (1p1n1u1w) 1188 | -9/Mines | Discovered new exit (range 5) 1195 | -9/Mines | Entered Materials 1195 | -8/Materials | Evolved 2 slots: Propulsion x1, Utility x1 1196 | -8/Materials | Loaded intel: 14 trap records 1467 | -8/Materials | Repaired Coolant Injector 1626 | -8/Materials | Discovered new exit (range 12) 1639 | -8/Materials | Entered Factory 1639 | -7/Factory | Evolved 2 slots: Utility x2 2013 | -7/Factory | Lost 5 parts (1p3n1w) 2053 | -7/Factory | Discovered new exit (range 5) 2112 | -7/Factory | Entered Lower Caves 2122 | -7/Lower Caves | Learned location of Extension (-6) 2622 | -7/Lower Caves | Attracted the attention of an 0b10 checkpoint 2630 | -7/Lower Caves | Core integrity fell below 50% 2645 | -7/Lower Caves | Core integrity fell below 20% 2650 | -7/Lower Caves | Destroyed by Y-54 Guardian with Gatling Laser Last Messages --------------- 02617_ Coolant Injector destroyed. 02620_ S-27 Virus destroyed. 02622_ Y-54 Guardian: "INTERCEPTING UNREGISTERED DERELICT." 02624_ Imp. Carbon-fiber Leg destroyed. 02627_ Pulse Rifle severed. 02632_ Pulse Rifle destroyed. 02633_ Plasma Cannon destroyed. 02634_ Imp. Carbon-fiber Leg destroyed. 02634_ Targeting Computer destroyed. 02635_ S-27 Virus destroyed. 02635_ Switching to secondary target: Y-54 Guardian. 02636_ Gauss Rifle severed. 02638_ Coolant Injector destroyed. 02640_ L-41 Fighter destroyed. 02643_ G-47 Trooper destroyed. 02644_ Core Analyzer severed. 02648_ Autogun fries itself beyond repair. 02649_ Aluminum Leg fries itself beyond repair. Map ----- +----------------------------------------------------+ | | | | | ?????????????????????????????????????????????????? | | ?????????????????????????????????????????????????? | | ?????????????????????????????????????????????????? | | ?????????????????????????????????????????????????? | | ?????????????????????????????????????????????????? | | ?????????????????????????????????????????????????? | | ?????????????????????????????????????????????????? | | ?????????????????????????????????????????????????? | | ?????????????????????????????????????????????????? | | ?????????????????????????????????????????????????? | | ?????????????????????????????????????????????????? | | ?????????????????????????????????????????????????? | | ?????????????????????????????????????????????????? | | ?????????????????????????????????????????????????? | | ????????????????????????#######??????????????????? | | ??????????????????####### #####?????????????## | | ??????????????????# #?###????????## | | ?????????????????## #?# ##??????## | | ?????????????##### ### ######## | | ?????????????# % % | | ?????? %m Y % #% | | ????? ## !% ##### | | ?????? ####%l% #???## | | ?????? ???##@[ ###??##%% | | ??????? ????## ##??# | | ??????? ?????## #### | | ???????# ## ??????### % # | | ????????##??# ????????## ## ## | | ????????????# ??????????## ######## | | ???????????? ???????????## #####?????? | | ???????????# ????????????# #?????????? | | ???????????## ????????????# #????????? # | | ???????????? ???????????# #???????? # | | ???????????????? ????????????## ??????# # | | ???????????????????????????????## ????? | | ????????????????????????????????# ???? | | ????????????????????????????????# ?? | | ????????????????????????????????## ?? | | ?????????????????????????????????###### ??? | | ??????????????????????????????????????? ??? ## | | ??????????????????????????????????????????? #??# | | ???????????????????????????????????????????? ????# | | ?????????????????????????????????????????????????? | | ?????????????????????????????????????????????????? | | ?????????????????????????????????????????????????? | | ?????????????????????????????????????????????????? | | ?????????????????????????????????????????????????? | | ?????????????????????????????????????????????????? | +----------------------------------------------------+ Best States ------------- Heat Dissipation 53 Coolant Potential 130 Energy Generation 10 Energy Capacity 250 Matter Stores 300 Matter Capacity 450 Sight Range 16 Terrain Scan Density 10 ECM Strength 1 Propulsion Shielding 66 Evasion (%) 55 Targeting Accuracy 15 Core Analysis 9 Recoil Reduction 3 Item Schematics ----------------- None Robot Schematics ------------------ None Fabricated ------------ Nothing Alien Tech Used ----------------- None Achievements -------------- Part-time Mechanic Challenges ------------ None Game ------ Seed RocketThrusterAutogun Manual? 0 Play Time 00:47:19 Cumulative 2.8 hours Start 2024.06.30 @ 19:26:41 End 2024.06.30 @ 20:23:53 Sessions 1 Manual Loads 0 Difficulty Rogue Special Mode None Game No. 3 Rogue 3 Adventurer 0 Explorer 0 Win Type - Total 0 Types 0/0/0/0/0/0/0/0/0 Lore% 2 Gallery% 7 Achievement% 6 Wizard Run 0 Options --------- Layout 1 ASCII 0 Keyboard 0 Movement Arrows Keybinds 0 Fullscreen 1 Font 24/Smallcaps Map View 50x35 Zoom Use 0% Tactical HUD 1 Map Filters NONE Filters NONE Steam 1 RUN: 50b4b566-bd48-44e8-9c23-1a6b1a8cd32c